Cogmind - Beta 16 @@@ ROGUE MODE // 2025.11.03 @ 15:26:32 Player: AnotherZach Result: Destroyed by AP-YDG(R) with Subdweller Beam Cannon Performance ------------- Evolutions (0) 0 Regions Visited (2) 400 Robots Destroyed (25) 125 Value Destroyed (545) 545 Prototype IDs (1) 20 Alien Tech Used (0) 0 Bonus (0) 0 TOTAL SCORE: 1090 Bonus ------- None Cogmind --------- Core Integrity 0/250 Matter 194/300 Energy 265/265 System Corruption 3% Temperature Warm (116) Movement Treading (160) Location -10/Subcaves Parts ------- > --- POWER (1) -------- Improved Ion Engine > --- PROPULSION (2) --- Light Treads Light Treads > --- UTILITY (2) ------ Large Storage Unit > --- WEAPON (2) ------- Light Cannon Light Cannon > --- INVENTORY (15) --- Subdweller Power Source Wheel Compact Wheel Improved Flight Unit Improved Flight Unit Improved Flight Unit Improved Flight Unit Small Storage Unit Large Matter Pod (106) Machine Analyzer Improved Terrain Scanner ECM Suite Hacking Suite Light Assault Rifle Light Cannon Peak State ------------ > --- POWER ------------ Light Nuclear Core > --- PROPULSION ------- Light Treads Light Treads > --- UTILITY ---------- Large Storage Unit Seismic Detector > --- WEAPON ----------- Light Assault Rifle Light Assault Rifle > --- INVENTORY -------- Improved Ion Engine Light Treads Compact Wheel Compact Wheel Improved Flight Unit Improved Flight Unit Improved Flight Unit Improved Flight Unit Small Storage Unit Medium Storage Unit Large Matter Pod Machine Analyzer Improved Terrain Scanner Hacking Suite Light Assault Rifle [Rating: 12] Favorites ----------- Power Light Nuclear Core Engine Improved Ion Engine Power Core Light Nuclear Core Propulsion Light Treads Treads Light Treads Wheel Compact Wheel Flight Unit Improved Flight Unit Utility Seismic Detector Device Seismic Detector Storage Large Storage Unit Weapon Light Assault Rifle Ballistic Gun Light Assault Rifle Ballistic Cannon Light Cannon Build | -11 -10 -10 ------- Run | Yrd Mat Sub Slots Evolved . | . . . Power . | . . . Propulsion . | . . . Utility . | . . . Weapon . | . . . Parts Attached 21 | 7 13 1 Power 4 | 1 2 1 Engine 3 | 1 1 1 Core 1 | . 1 . Reactor . | . . . Propulsion 6 | 2 4 . Treads 4 | 2 2 . Leg . | . . . Wheel 1 | . 1 . Hover . | . . . Flight 1 | . 1 . Utility 4 | 2 2 . Device 2 | 1 1 . Storage 2 | 1 1 . Processor . | . . . Hackware . | . . . Protection . | . . . Artifact . | . . . Weapon 7 | 2 5 . Energy Gun . | . . . Energy Cannon . | . . . Ballistic Gun 5 | 2 3 . Ballistic Cannon 2 | . 2 . Launcher . | . . . Special Weapon . | . . . Impact Weapon . | . . . Slashing Weapon . | . . . Piercing Weapon . | . . . Special Melee Weapon . | . . . Unidentified Prototypes 1 | . 1 . Parts Lost 2 | . . 2 Power 1 | . . 1 Propulsion . | . . . Utility 1 | . . 1 Weapon . | . . . Highest Loss Streak 1 | . . 1 To Critical Strikes . | . . . Average Backups 11 | 2 11 15 Power . | . . 1 Propulsion 5 | 2 5 6 Utility 4 | . 4 6 Weapon . | . . 2 Tool/Special . | . . . Unused Backups 17 | . 5 12 Power 1 | . . 1 Propulsion 8 | . 3 5 Utility 7 | . 2 5 Weapon 1 | . . 1 Tool/Special . | . . . Average Slot Usage (%) 99 | . 99 98 Engine 3 | . 2 6 Core 10 | . 11 7 Treads 23 | . 23 28 Wheel 3 | . 4 . Device 13 | . 14 12 Storage 14 | . 14 14 Ballistic Gun 22 | . 25 . Ballistic Cannon 4 | . 1 28 Peak Build Rating 12 | 7 12 12 Average Rating 10 | 5 10 11 On Entrance 6 | . 7 12 Avg Prop Armor Cover (%) 6 | . 6 . Naked Turns . | . . . Heaviest Build 34 | 14 32 34 Greatest Support 40 | 40 40 40 Greatest Overweight (x) 1 | . 1 . Average Overweight (x) . | . . . Largest Inventory Capacity 15 | 8 15 15 Average Capacity 12 | 7 12 15 Most Carried 15 | 6 15 15 Average Carried 11 | 2 11 14 Final Capacity 15 | 8 15 15 Final Carried 15 | 6 15 15 Class Distribution -------------------- 65% | Mutant 34% | Scavenger-Mutant Dominant Class ---------------- Mutant | -10/Materials Mutant | -10/Subcaves Resources | -11 -10 -10 ----------- Run | Yrd Mat Sub Matter Collected 760 | 260 438 62 Remotely . | . . . Salvage Created 971 | 158 753 60 Parts 70 | 14 53 3 Haulers Intercepted 1 | . 1 . Recyclers Shooed 1 | . 1 . Parts Field Recycled . | . . . Retrieved Matter . | . . . Parts Self-Destructed 1 | . . 1 Prevented . | . . . Parts Restored . | . . . Kills | -11 -10 -10 ------- Run | Yrd Mat Sub Combat Hostiles Destroyed 12 | . 11 1 Guns 10 | . 10 . Cannons 2 | . 1 1 Classes Destroyed 10 | 2 6 2 Builder 1 | . 1 . Tunneler 5 | 4 1 . Hauler 1 | . 1 . Recycler 3 | 1 2 . Mechanic 1 | . 1 . Operator 1 | . 1 . Watcher 1 | . 1 . Grunt 11 | . 11 . Artisan 1 | . . 1 Subdweller 1 | . . 1 Best Kill Streak 5 | 5 3 1 Combat Bots Only 3 | . 3 1 Max Kills in Single Turn 1 | 1 1 1 Gunslinging . | . . . Exploded . | . . . Melee . | . . . Uniques/NPCs Destroyed . | . . . Combat | -11 -10 -10 -------- Run | Yrd Mat Sub Hostile Shots Fired 90 | . 72 18 Missed 17 | . 14 3 Hits 73 | . 58 15 Projectile 73 | . 58 15 Critical Strikes 1 | . . 1 Damage Taken 1053 | . 663 390 Core 275 | . 114 161 Absorbed by Shields . | . . . Core Remaining (%) 100 | 100 . . Volleys Fired 90 | 9 68 13 Largest 2 | 2 2 2 Hottest 60 | 40 60 60 Shots Fired 179 | 18 137 24 Gun 144 | 18 126 . Cannon 35 | . 11 24 Launcher . | . . . Special . | . . . Kinetic 179 | 18 137 24 Thermal . | . . . Explosive . | . . . Electromagnetic . | . . . Robot Hit Streak 18 | 5 18 11 Robot Miss Streak 3 | 2 3 3 Penetration Max . | . . . Secondary Targets 3 | . 3 . Max Gunslinging Chain 1 | . 1 . Shots Hit Robots 125 | 12 94 19 Core Hits 53 | 7 43 3 Critical Kills . | . . . Critical Parts Destroyed . | . . . Critical Strikes 1 | . 1 . Blast 1 | . 1 . Melee Attacks . | . . . Impact . | . . . Slashing . | . . . Piercing . | . . . Sneak Attacks . | . . . Combat Hostiles . | . . . Follow-up Attacks . | . . . Damage Inflicted 1032 | 151 828 53 Guns 866 | 151 715 . Cannons 166 | . 113 53 Explosions . | . . . Melee . | . . . Ramming . | . . . Kinetic 1032 | 151 828 53 Thermal . | . . . Explosive . | . . . Electromagnetic . | . . . Impact . | . . . Slashing . | . . . Piercing . | . . . Highest Corruption 3 | . 3 3 Average Corruption 2 | . 2 3 Corruption Purged . | . . . Corruption Blocked . | . . . Effects 23 | . 19 4 Message Errors 7 | . 7 . Matter Fused 2 | . 1 1 Heat Flow Errors 2 | . 2 . Energy Discharges 6 | . 5 1 Data Loss (minor) 2 | . 2 . Data Loss (major) 1 | . 1 . Misfires 1 | . 1 . Weapon Failures 2 | . . 2 Overload Shots . | . . . Overflow Damage . | . . . Projectiles . | . . . Explosions . | . . . Melee . | . . . Knockbacks 2 | . 1 1 Impact . | . . . Kinetic 2 | . 1 1 Secondary . | . . . Self-Inflicted Damage . | . . . Shots . | . . . Rammed . | . . . Targets Rammed . | . . . Kicked . | . . . Crushed . | . . . Highest Temperature 366 | . 366 280 Average Temperature 59 | . 50 196 Received Heat Transfer 782 | . 369 413 Effects 1 | . 1 . Interference 1 | . 1 . Siege Activations . | . . . Martial Activations . | . . . Shielding Activations . | . . . Robots Disrupted . | . . . Combat Hostiles . | . . . Robots Corrupted . | . . . Combat Hostiles . | . . . Parts Fried . | . . . Impact Corruptions . | . . . Robots Melted . | . . . Combat Hostiles . | . . . Parts Melted . | . . . Heat Transferred . | . . . Parts Sabotaged . | . . . Parts Stolen . | . . . Parts Stripped . | . . . Power Chain Reactions . | . . . Alert | -11 -10 -10 ------- Run | Yrd Mat Sub Maximum Alert Level . | . . . Low Security (%) 100 | 100 100 . Level 1 . | . . . Level 2 . | . . . Level 3 . | . . . Level 4 . | . . . Level 5 . | . . . High Security . | . . . Max Security . | . . . Peak Influence 90 | 10 90 . Initial . | . . . Average 23 | 2 25 . Influence Increases 364 | 25 339 . Destroy 0b10 Robot/C 220 | . 220 . Destroy 0b10 Robot/NC 65 | 25 40 . Destroy Leader 54 | . 54 . Successful Hack 24 | . 24 . Destroy Structure 1 | . 1 . Influence Decreases 364 | 25 319 20 Entered New Map 10 | . . 10 Time Decay 354 | 25 319 10 Squads Dispatched 3 | . 3 . Investigation 2 | . 2 . Extermination . | . . . Reinforcement 1 | . 1 . Assault . | . . . Garrison . | . . . Intercept . | . . . Searches Triggered . | . . . Construction Impeded . | . . . Haulers Reinforced . | . . . Active Scanning Responses . | . . . Cargo Convoy Interrupts . | . . . Stealth | -11 -10 -10 --------- Run | Yrd Mat Sub Distress Signals . | . . . Communications Jammed . | . . . Distress Signals . | . . . Times Spotted 23 | . 21 2 Peak Tracking Total 3 | . 3 1 Tactical Retreats . | . . . Traps | -11 -10 -10 ------- Run | Yrd Mat Sub Traps Triggered 5 | . 5 . Indirectly . | . . . Trap Hack Attempts . | . . . Triggered . | . . . Disarmed . | . . . Reprogrammed . | . . . Reused . | . . . Traps Extracted . | . . . Installed . | . . . Triggered . | . . . Machines | -11 -10 -10 ---------- Run | Yrd Mat Sub Machines Disabled . | . . . Max in Single Turn . | . . . Machines Repaired . | . . . Machines Dismantled . | . . . Machines Sabotaged . | . . . Overloaded Fab Kills . | . . . Hacking | -11 -10 -10 --------- Run | Yrd Mat Sub Machines Accessed 7 | . 7 . Terminals 7 | . 7 . Fabricators . | . . . Repair Stations . | . . . Recycling Units . | . . . Scanalyzers . | . . . Garrison Access . | . . . Total Hacks 24 | . 24 . Successful 13 | . 13 . Failed 11 | . 11 . Catastrophic 2 | . 2 . Database Lockouts . | . . . Manual 20 | . 20 . Terminals 24 | . 24 . Fabricators . | . . . Repair Stations . | . . . Recycling Units . | . . . Scanalyzers . | . . . Garrison Access . | . . . Terminal Hacks 5 | . 5 . Robot Schematic 1 | . 1 . Robot Analysis 1 | . 1 . Locate Traps 2 | . 2 . Zone Layout 1 | . 1 . Fabricator Hacks . | . . . Repair Station Hacks . | . . . Recycling Unit Hacks . | . . . Scanalyzer . | . . . Garrison Access Hacks . | . . . Unauthorized Hacks 8 | . 8 . Terminals 8 | . 8 . Track 1 | . 1 . Botnet 2 | . 2 . Skim 5 | . 5 . Fabricators . | . . . Repair Stations . | . . . Recycling Units . | . . . Scanalyzers . | . . . Garrison Access . | . . . Data Cores Recovered . | . . . Used . | . . . Hacking Detections 6 | . 6 . Full Trace Events . | . . . Feedback Events . | . . . Feedback Blocked . | . . . Robot Schematics Acquired 1 | . 1 . Robots Built . | . . . Authchips . | . . . Time . | . . . Total Robot Build Rating . | . . . Part Schematics Acquired . | . . . Parts Built . | . . . Authchips . | . . . Time . | . . . Total Part Build Rating . | . . . Part Studies Acquired . | . . . Parts Repaired . | . . . Time . | . . . Parts Recycled . | . . . Recycled Matter . | . . . Retrieved Matter . | . . . Retrieved Components . | . . . Parts Scanalyzed . | . . . Part Schematics Acquired . | . . . Parts Damaged . | . . . Bothacking | -11 -10 -10 ------------ Run | Yrd Mat Sub Used RIF Installer . | . . . Robots Hacked . | . . . Non-combat . | . . . Combat . | . . . Robot Hacks Applied . | . . . Relay Couplers Released . | . . . Fabnet Peak Effective % . | . . . Robots Rewired . | . . . Allies Hacked . | . . . Hacks Repelled . | . . . Allies | -11 -10 -10 -------- Run | Yrd Mat Sub Total Allies . | . . . Largest Group . | . . . Highest-Rated Group . | . . . Highest-Rated Ally . | . . . Total Orders . | . . . Ally Attacks . | . . . Total Damage . | . . . Kills . | . . . Allies Corrupted . | . . . Allies Melted . | . . . Intel | -11 -10 -10 ------- Run | Yrd Mat Sub Active Infowar (turns) 1264 | 35 1106 123 Seismic 1264 | 35 1106 123 Robot Analysis Total 1 | . 1 . Derelict Logs Recovered . | . . . Drone Launches . | . . . Drone Recoveries . | . . . Exploration | -11 -10 -10 ------------- Run | Yrd Mat Sub Turns Passed 1462 | 128 1197 137 Spaces Moved 643 | 59 524 60 Core 6 | 6 . . Treads 579 | 53 466 60 Legs . | . . . Wheels 58 | . 58 . Hover . | . . . Flight . | . . . Fastest Speed 50 | 50 100 160 Average Speed 167 | 148 170 160 Slowest Speed 240 | 160 240 160 Overloaded Moves . | . . . Propulsion Burnouts . | . . . Robots Hopped . | . . . Potential Cave-ins . | . . . Cave-ins Triggered . | . . . Exploration Rate (%) 30 | 4 81 5 Regions Visited 2 Branch Regions 1 Pre-discovered Areas . | . . . Known Exits Taken . | . . . Unknown Exits Taken 2 | 1 1 . Scrap Searched . | . . . Spaces Dug . | . . . Terrain Destroyed . | . . . Melee . | . . . Projectile . | . . . AOE . | . . . Terrain Rammed . | . . . Walls Destroyed . | . . . Machines Disabled . | . . . Actions | -11 -10 -10 --------- Run | Yrd Mat Sub Total 877 | 80 722 75 Wait 81 | . 81 . Move 641 | 58 523 60 Hop . | . . . Pick Up 22 | 6 15 1 Fast Attach 13 | 7 6 . Attach 3 | . 2 1 Detach 2 | . 2 . Swap 9 | . 9 . Drop 16 | . 16 . Fire 90 | 9 68 13 Melee . | . . . Ram . | . . . Kick . | . . . Crush . | . . . Escape Stasis . | . . . Rewire . | . . . Trap . | . . . Miscellaneous . | . . . Route ------- -11/Scrapyard -10/Materials (discovered 5 exits: *Mat x3 / [*Min] / [*Sub]) -10/Subcaves (discovered 3 exits: Mat x2 / Rec) History --------- Turn | Location | Event 4 | -11/Scrapyard | Discovered new exit (range 15) 129 | -11/Scrapyard | Entered Materials 301 | -10/Materials | Build established: Mutant 396 | -10/Materials | Discovered new exit (range 16) 571 | -10/Materials | Discovered new exit (range 16) 1064 | -10/Materials | Learned 4 Subcaves zone layouts 1162 | -10/Materials | Learned location of 1 exit from Recycling 1179 | -10/Materials | Discovered new exit (range 15) 1185 | -10/Materials | Build established: Scavenger-Mutant 1216 | -10/Materials | Learned 4 Subcaves zone layouts 1222 | -10/Materials | Discovered new exit (range 5) 1228 | -10/Materials | Identified exit to Materials 1228 | -10/Materials | Learned location of 1 exit from Materials 1231 | -10/Materials | Learned Storage trap positions 1263 | -10/Materials | Learned Recycling recycling unit intel 1326 | -10/Materials | Entered Subcaves 1327 | -10/Subcaves | Identified exit to Materials 1327 | -10/Subcaves | Identified exit to Recycling 1392 | -10/Subcaves | Ambushed by angry Subdweller bent on revenge 1398 | -10/Subcaves | Core integrity fell below 50% 1458 | -10/Subcaves | Core integrity fell below 20% 1463 | -10/Subcaves | Destroyed by AP-YDG(R) with Subdweller Beam Cannon Last Messages --------------- [Achievement: Art Critic] 01382_ CB-POP(u) destroyed. 01387_ Subatomizers dissect the Wheel. 01390_ Acquired 13 matter. 01392_ 3U-H1O(R) angrily emerges from the Twisted Machinery. 01392_ 3U-H1O(R): "OHNO!" 01392_ Lgt. Nuclear Core destroyed. 01392_ 3U-H1O(R) knocked back. 01399_ Subatomizers dissect the Wheel. 01399_ System corrupted: Lgt. Cannon jammed. 01399_ 3U-H1O(R) destroyed. 01403_ Acquired 47 matter. 01407_ Acquired Sub. Power Source. 01410_ Subatomizers dissect the Wheel. 01411_ Acquired 2 matter. 01448_ System corrupted: Lgt. Cannon jammed. 01449_ Seismic Detector destroyed. 01451_ Critical hit (Meltdown: +290). 01459_ System corrupted: Matter fused (-5). Map ----- +----------------------------------------------------+ | ?????????????????????????????????????????????? | | ?????????????????????????????????????????????? | | ?????????????????????????????????????????????? | | ?????????????????????????????????????????????? | | ?????????????????????????????????????????????? | | ?????????????????????????????????????????????? | | ?????????????????????????????????????????????? | | ?????????????????????????????????????????????? | | ?????????????????????????????????????????????? | | ?????????????????????????????????????????????? | | ?????????????????????????????????????????????? | | ???????????????????????#?????????????????????? | | ??????????????????????? ###??????????????????? | | ??????????????????????? ??????????????????? | | ??????????????????????? ??????????????????? | | ??????????????????????? ??????????????????? | | ??????????????????????? ??????????????????? | | ???????????????????????# ??????????????????? | | ??????????????????????## ??????????????????? | | ????????????????????### #??????????????????? | | ?????????????????????$#< ##?????????????????? | | ?????????????????????? #?????????????????? | | ?????????????????????##R #?????????????????? | | ?????????????????????# ##????????????????? | | ??????????????????????# ####?????????????? | | ???????????????????????# @ ## #?????????????? | | ???????????????????????# #?????????????? | | ???????????????????????## ##?????????????? | | ???????????????????????# ##??????????????? | | ??????????????????????## ##???????????????? | | ?????????????????????## ##????????????????? | | ?????????????????????# #?????????????????? | | ?????????????????????# #?????????????????? | | ?????????????????????# #?????????????????? | | ?????????????????????# ##?????????????????? | | ???????????????????### #??????????????????? | | ???????????????????# #??????????????????? | | ???????????????????## ##??????????????????? | | ????????????????????# ##?###???????????????? | | ????????????????????# # # ##??????????????? | | ????????????????????# " " ##?????????????? | | ????????????????????#"==""" #?????????????? | | ????????????????????#" ##"#"" #?????????????? | | ###?????????????????#" ####"" #?????????????? | | #######???????????# ##???"?#?????????????? | | ## #????????#### ###?????????????????? | | ##????#### ## ##????????????????? | | ### # ####?# #????????????????? | | #### ## ### #????????????????? | | #### ## # # #### ##????????????????? | +----------------------------------------------------+ Best States ------------- Heat Dissipation 25 Energy Generation 14 Energy Capacity 265 Matter Stores 300 Matter Capacity 300 Sight Range 16 Terrain Scan Density 10 Evasion (%) 40 Recoil Reduction 2 Item Schematics ----------------- None Robot Schematics ------------------ M-13 Machinist | -10/Materials | Hacked Fabricated ------------ Nothing Repaired ---------- Nothing Studied --------- None Alien Tech Used ----------------- None Achievements -------------- Art Critic DATA ERROR: Steam Global Achievement% Organ Harvest Challenges ------------ None Game ------ Seed SuperquantumSapperSuite Manual? 0 Play Time 00:13:09 Cumulative 740.4 hours Start 2025.11.03 @ 15:11:56 End 2025.11.03 @ 15:26:32 Sessions 1 Manual Loads 0 Difficulty Rogue Special Mode None Game No. 174 Rogue 36 Adventurer 138 Explorer 0 Win Type - Total 11 Types 7/0/1/2/0/0/0/0/1/0 Lore% 78 Gallery% 76 Achievement% 41 Wizard Run 0 Options --------- Layout 2 ASCII 0 Keyboard 0 Movement Mouse Keybinds 0 Fullscreen 1 Font 24/Smallcaps Map View 50x49 Zoom Use 47% Tactical HUD 1 Map Filters NONE Filters NONE Steam 1 RUN: 011054b6-1902-4a31-b835-4b72dfab1aae